bitfinex-derivatives/quotes_SOLF0:USTF0_20250416
["timestamp","ask_amount","ask_price","bid_price","bid_amount"]
[1744830846881,7.7081,129.73,129.72,0.05510755]
[1744830847089,36.74,129.73,129.65,65.65804332]
[1744830847288,36.74,129.73,129.66,2.1499]
[1744830847882,28.91804332,129.68,129.6,35.48965366]
[1744830848087,36.74,129.67,129.6,35.48965366]
[1744830848388,0.05465658,129.65,129.64,7.7135]
[1744830849290,0.05465658,129.65,129.63,7.76257003]
[1744830849586,0.05465658,129.65,129.63,0.04867003]
[1744830851685,0.05465658,129.65,129.63,7.76227003]
[1744830851985,0.05465658,129.65,129.63,0.04867003]
[1744830852391,0.05465658,129.65,129.64,7.7135]
[1744830852685,0.05465658,129.65,129.63,0.04867003]
[1744830852889,0.05465658,129.65,129.64,7.7135]
[1744830853588,36.76,129.71,129.64,28.91804332]
[1744830853789,36.76,129.73,129.65,2.0365]
[1744830854090,7.7089,129.72,129.68,7.7107]
[1744830854392,0.04971659,129.71,129.69,0.05418823]
[1744830855392,0.04971659,129.71,129.7,7.7099]
[1744830855886,0.04971659,129.71,129.69,0.05418823]
[1744830856293,36.76,129.76,129.69,0.05418823]
[1744830856595,36.76,129.76,129.7,28.91804332]
[1744830856798,36.76,129.76,129.74,7.7072]
[1744830857296,36.76,129.76,129.74,7.76080172]
[1744830857792,36.76,129.76,129.75,7.7069]
[1744830858094,36.76,129.79,129.74,0.05360172]
[1744830858292,44.4646,129.79,129.75,7.7067]
[1744830858493,44.4646,129.79,129.74,0.05360172]
[1744830858693,36.76,129.79,129.74,0.05360172]
[1744830858894,44.4646,129.79,129.75,7.7066]
[1744830859198,36.76,129.79,129.75,7.7066]
[1744830859597,36.76,129.79,129.74,0.05360172]
[1744830860297,7.7055,129.78,129.74,7.76100172]
[1744830860498,36.76,129.79,129.74,0.05360172]
[1744830860799,44.4648,129.79,129.74,0.05360172]
[1744830861594,36.76,129.79,129.74,0.05360172]
[1744830862098,36.76,129.79,129.76,7.7059]
[1744830862699,36.76,129.79,129.77,7.7056]
[1744830862899,36.76,129.79,129.77,0.05577955]
[1744830863599,36.76,129.79,129.71,2.0557]
[1744830863600,28.91804332,129.78,129.66,65.65804332]
[1744830863807,7.7072,129.75,129.71,7.709]
[1744830864098,44.4472,129.75,129.67,6.0703]
[1744830864500,44.4472,129.75,129.71,7.7089]
[1744830864702,0.05252229,129.74,129.72,0.04972864]
[1744830866004,36.74,129.79,129.72,0.04972864]
[1744830866197,44.4449,129.79,129.76,7.7063]
[1744830866697,36.74,129.79,129.76,7.7063]
[1744830866900,36.74,129.79,129.75,7.7067]
[1744830867096,36.74,129.79,129.76,0.05231352]
[1744830867399,44.4449,129.79,129.76,7.75831352]
[1744830867801,36.74,129.79,129.76,0.05231352]
[1744830868301,7.7055,129.78,129.76,0.05231352]
[1744830868504,36.74,129.79,129.76,0.05231352]
[1744830868904,44.4449,129.79,129.76,7.75861352]
[1744830869205,36.74,129.79,129.76,0.05231352]
[1744830870106,44.4447,129.79,129.76,7.75811352]
[1744830870306,36.74,129.79,129.76,0.05231352]
[1744830872706,65.65804332,129.79,129.76,0.05231352]
[1744830873411,7.7057,129.77,129.76,0.05231352]
[1744830873909,7.7074,129.75,129.71,2.1186]
[1744830874415,7.7074,129.75,129.72,7.7084]
[1744830875005,0.05234416,129.75,129.72,0.05385051]
[1744830875308,36.71234416,129.75,129.72,0.05385051]
[1744830876210,7.7076,129.74,129.72,7.76255051]
[1744830876413,36.71234416,129.75,129.72,7.76255051]
[1744830876611,36.71234416,129.75,129.73,7.7078]
[1744830877416,44.41934416,129.75,129.72,7.76235051]
[1744830877617,36.71234416,129.75,129.72,0.05385051]
[1744830878317,44.41954416,129.75,129.72,7.76225051]
[1744830878518,36.71234416,129.75,129.72,0.05385051]
[1744830879109,65.63038748,129.75,129.67,2.1504]
[1744830879314,28.91804332,129.71,129.64,2.0948]
[1744830879514,36.66,129.7,129.64,2.0948]
[1744830879818,7.7108,129.69,129.64,2.0948]
[1744830880114,0.0533025,129.68,129.65,0.05401782]
[1744830880618,28.91804332,129.71,129.65,0.05401782]
[1744830880818,28.91804332,129.71,129.61,2.1299]
[1744830881519,0.05611879,129.67,129.65,0.05509651]
[1744830882920,7.7123,129.66,129.65,0.05509651]
[1744830884524,7.76801879,129.67,129.65,0.05509651]
[1744830884918,0.05611879,129.67,129.65,0.05509651]
[1744830885319,0.05611879,129.67,129.66,7.7123]
[1744830887924,0.05611879,129.67,129.65,7.76769651]
[1744830888323,0.05611879,129.67,129.65,0.05509651]
[1744830888924,0.05611879,129.67,129.66,7.7123]
[1744830889824,0.05611879,129.67,129.65,7.76769651]
[1744830890025,0.05611879,129.67,129.65,0.05509651]
[1744830890522,7.7138,129.64,129.61,7.715]
[1744830890722,7.7138,129.64,129.6,4.1282]
[1744830890922,36.68,129.65,129.61,7.7148]
[1744830891425,0.05406531,129.64,129.62,0.05120263]
[1744830892226,7.7141,129.63,129.62,0.05120263]
[1744830892928,28.97210863,129.64,129.58,20.04067]
[1744830893225,28.97210863,129.64,129.58,27.75717]
[1744830893528,0.05406531,129.64,129.58,20.04067]
[1744830893723,0.05406531,129.64,129.63,7.7141]
[1744830895822,0.05406531,129.64,129.62,0.05100266]
[1744830896228,65.59804332,129.63,129.62,0.05100266]
[1744830896431,73.31214332,129.63,129.62,0.05100266]
[1744830896725,44.3941,129.63,129.62,0.05100266]
[1744830897833,36.68,129.63,129.62,0.05100266]
[1744830898029,0.05406531,129.64,129.62,0.05100266]
[1744830898325,0.05406531,129.64,129.63,7.7141]
[1744830899930,36.68,129.66,129.65,7.7129]
[1744830900320,36.68,129.69,129.63,2.1166]
[1744830900522,36.68,129.69,129.66,7.7117]
[1744830900924,36.73767807,129.69,129.66,7.76066399]
[1744830901430,36.73767807,129.69,129.67,7.7112]
[1744830901732,36.73767807,129.69,129.66,0.04896399]
[1744830901930,36.68,129.72,129.71,7.7093]
[1744830902430,73.29804332,129.72,129.64,7.7132]
[1744830902629,36.68,129.72,129.63,2.1166]
[1744830902825,36.68,129.72,129.63,31.03464332]
[1744830903027,0.05067455,129.69,129.68,7.7106]
[1744830904029,36.6,129.75,129.67,28.97406533]
[1744830904338,36.6,129.75,129.68,2.0176]
[1744830904529,36.6,129.75,129.7,7.7095]
[1744830904730,36.6,129.75,129.68,2.0176]
[1744830904931,28.91804332,129.81,129.71,28.91804332]
[1744830905130,36.58,129.86,129.75,28.9713879]
[1744830905333,7.7026,129.83,129.79,0.05602294]
[1744830905535,36.58,129.86,129.79,0.05602294]
[1744830905731,7.7013,129.85,129.79,0.05602294]
[1744830906234,36.58,129.86,129.79,0.05602294]
[1744830906432,7.7028,129.82,129.79,0.05602294]
[1744830906639,36.58,129.82,129.79,0.05602294]
[1744830907336,28.91804332,129.87,129.79,0.05602294]
[1744830907538,36.58,129.85,129.82,0.05368554]
[1744830907837,36.58,129.85,129.82,7.75628554]
[1744830908038,36.58,129.85,129.82,0.05368554]
[1744830908634,7.7022,129.83,129.82,0.05368554]
[1744830908834,65.49804332,129.85,129.76,2.0176]
[1744830909428,28.91804332,129.83,129.74,4.151]
[1744830909932,0.05181392,129.8,129.77,0.05270914]
[1744830910832,36.58,129.85,129.77,0.05270914]
[1744830911037,36.58,129.85,129.77,65.49804332]
[1744830911233,36.58,129.85,129.78,2.0714]
[1744830911434,7.7026,129.83,129.78,2.0714]
[1744830911936,7.7026,129.83,129.79,0.05579437]
[1744830912132,36.58,129.85,129.79,0.05579437]
[1744830912334,65.49804332,129.85,129.79,0.05579437]
[1744830912732,36.58,129.85,129.79,0.05579437]
[1744830914038,36.58,129.85,129.81,7.7029]
[1744830914239,36.58,129.85,129.82,0.05297746]
[1744830914636,36.56,129.88,129.82,0.05297746]
[1744830915142,7.7003,129.87,129.82,0.05297746]
[1744830915442,36.56,129.88,129.82,0.05297746]
[1744830916035,7.7017,129.84,129.82,0.05297746]
[1744830916340,36.56,129.88,129.82,0.05297746]
[1744830916741,7.7001,129.87,129.82,0.05297746]
[1744830916940,36.56,129.88,129.82,0.05297746]
[1744830917241,7.7007,129.86,129.82,0.05297746]
[1744830917441,36.56,129.88,129.82,7.75537746]
[1744830917737,36.56,129.88,129.82,0.05297746]
[1744830918243,7.7002,129.87,129.83,7.7017]
[1744830919042,44.2595,129.88,129.84,7.7015]
[1744830919247,36.56,129.88,129.85,0.0545245]
[1744830920045,44.2595,129.88,129.85,0.0545245]
[1744830920239,555.38,129.91,129.85,0.0545245]
[1744830920543,36.54,129.89,129.85,7.7554245]
[1744830920843,36.54,129.89,129.85,0.0545245]
[1744830921139,65.45804332,129.89,129.85,0.0545245]
[1744830921646,7.7004,129.86,129.85,0.0545245]
[1744830921939,65.45804332,129.89,129.85,0.0545245]
[1744830922139,36.54,129.89,129.85,0.0545245]
[1744830922744,7.6993,129.88,129.85,0.0545245]
[1744830923042,36.54,129.89,129.85,0.0545245]
[1744830923346,7.6996,129.88,129.85,0.0545245]
[1744830923750,36.54,129.89,129.85,0.0545245]
[1744830923940,7.7002,129.87,129.85,0.0545245]
[1744830924345,7.7004,129.86,129.85,0.0545245]
[1744830925741,7.7023,129.83,129.77,65.47804332]
[1744830925947,36.54,129.85,129.77,65.47804332]
[1744830926139,7.7019,129.84,129.77,65.47804332]
[1744830926346,36.54,129.85,129.77,65.47804332]
[1744830926648,0.05535479,129.83,129.8,0.05783899]
[1744830926849,0.05535479,129.83,129.82,7.7027]
[1744830927647,0.05535479,129.83,129.81,7.7033]
[1744830927846,0.05535479,129.83,129.8,0.05783899]
[1744830928148,0.05535479,129.83,129.81,7.7031]
[1744830928642,0.05535479,129.83,129.8,0.05783899]
[1744830928840,65.51339811,129.83,129.76,2.0685]
[1744830929045,65.51339811,129.83,129.73,2.0264]
[1744830929246,7.7043,129.8,129.76,7.7063]
[1744830929445,36.54,129.83,129.75,28.91804332]
[1744830929647,7.7031,129.82,129.78,7.7048]
[1744830929850,0.05005564,129.81,129.79,0.05230561]
[1744830930048,28.96809896,129.81,129.73,2.0264]
[1744830930249,28.91804332,129.81,129.73,2.0264]
[1744830930548,28.91804332,129.79,129.72,2.0213]
[1744830930751,44.2457,129.78,129.74,7.7072]
[1744830931144,0.051106,129.77,129.75,0.05189693]
[1744830931450,7.756906,129.77,129.75,0.05189693]
[1744830931647,0.051106,129.77,129.75,0.05189693]
[1744830932850,36.46,129.81,129.75,28.96994025]
[1744830933047,554.68,129.83,129.77,28.91804332]
[1744830933352,591.14,129.83,129.77,28.91804332]
[1744830933950,0.05860397,129.81,129.79,0.05276397]
[1744830934351,36.46,129.86,129.79,0.05276397]
[1744830934549,36.46,129.86,129.79,28.91804332]
[1744830934949,36.46,129.86,129.83,7.7018]
[1744830935150,36.46,129.86,129.79,28.91804332]
[1744830935453,0.05543115,129.84,129.81,0.05718285]
[1744830935654,0.05543115,129.84,129.83,7.7022]
[1744830936154,0.05543115,129.84,129.81,0.05718285]
[1744830936751,0.05543115,129.84,129.83,7.7022]
[1744830936946,0.05543115,129.84,129.81,0.05718285]
[1744830937353,0.05543115,129.84,129.82,7.7028]
[1744830937554,0.05543115,129.84,129.81,0.05718285]
[1744830937756,0.05543115,129.84,129.83,7.7022]
[1744830938454,36.46,129.92,129.81,36.51718285]
[1744830938659,36.46,129.92,129.83,28.91804332]
[1744830938857,36.46,129.92,129.84,1.9989]
[1744830939254,36.46,129.92,129.85,2.0731]
[1744830939555,36.46,129.92,129.87,0.05408439]
[1744830939751,554.7,129.95,129.87,0.05408439]
[1744830940057,44.156,129.94,129.9,0.04982552]
[1744830940248,36.46,129.94,129.9,0.04982552]
[1744830940558,7.6966,129.93,129.9,0.04982552]
[1744830940757,36.46,129.94,129.9,0.04982552]
[1744830941057,7.6968,129.92,129.9,0.04982552]
[1744830941459,36.46,129.94,129.9,0.04982552]
[1744830941659,7.6967,129.93,129.9,0.04982552]
[1744830941858,36.46,129.94,129.9,0.04982552]
[1744830942164,7.6966,129.93,129.9,0.04982552]
[1744830942459,65.37804332,129.94,129.9,0.04982552]
[1744830942761,7.6972,129.92,129.9,0.04982552]
[1744830943755,28.91804332,129.92,129.73,191.33394332]
[1744830943964,28.91804332,129.92,129.81,65.37804332]
[1744830944163,28.91804332,129.92,129.87,7.6994]
[1744830944459,7.6977,129.91,129.87,7.6994]
[1744830944652,65.37804332,129.94,129.88,7.6988]
[1744830944852,65.37804332,129.94,129.83,28.91804332]
[1744830945057,0.05122512,129.9,129.87,0.05800275]
[1744830945868,65.40926844,129.9,129.87,0.05800275]
[1744830946057,7.6992,129.88,129.87,0.05800275]
[1744830946253,7.6992,129.88,129.84,7.7013]
[1744830946457,65.35804332,129.9,129.8,4.1484]
[1744830946655,7.6989,129.89,129.8,4.1484]
[1744830946863,65.35804332,129.9,129.8,4.1484]
[1744830947360,0.05161677,129.86,129.84,0.05128855]
[1744830947864,0.05161677,129.86,129.85,7.701]
[1744830948064,36.44,129.93,129.84,0.05128855]
[1744830948362,36.44,129.93,129.89,7.6983]
[1744830948566,591.14,129.95,129.86,65.35804332]
[1744830948761,36.44,129.95,129.87,6.1762]
[1744830948962,0.05624186,129.92,129.9,0.05054162]
[1744830949259,28.91804332,129.97,129.87,35.09424332]
[1744830949454,28.91804332,129.97,129.87,6.1762]
[1744830950268,28.91804332,129.97,129.91,0.05373253]
[1744830950954,7.6954,129.95,129.91,7.75093253]
[1744830951761,44.1359,129.94,129.91,0.05373253]
[1744830951963,36.44,129.94,129.91,0.05373253]
[1744830952164,36.44,129.97,129.91,0.05373253]
[1744830952366,36.44,129.97,129.93,0.05647943]
[1744830952770,37.112,130.0,129.93,0.05647943]
[1744830952969,36.44,130.0,129.93,0.05647943]
[1744830953166,36.44,130.0,129.93,4.07637943]
[1744830953465,36.44,130.0,129.94,2.1384]
[1744830953671,36.44,130.0,129.99,7.6927]
[1744830953872,36.44,130.0,129.96,0.05074794]
[1744830954072,65.35804332,130.03,129.96,0.05074794]
[1744830954269,36.44,130.03,129.96,0.05074794]
[1744830954574,28.91804332,130.06,129.96,0.05074794]
[1744830954767,28.91804332,130.06,129.94,67.49644332]
[1744830954768,7.6904,130.03,130.0,0.04890518]
[1744830954967,65.35804332,130.04,130.0,0.05555466]
[1744830955872,73.04794332,130.04,130.0,0.05555466]
[1744830956073,65.35804332,130.04,130.0,0.05555466]
[1744830957076,73.04814332,130.04,130.0,0.05555466]
[1744830957274,65.35804332,130.04,130.0,0.05555466]
[1744830957678,28.91804332,130.02,130.0,0.05555466]
[1744830957874,65.35804332,130.04,130.0,0.05555466]
[1744830958279,7.6915,130.01,130.0,0.05555466]
[1744830959080,7.6911,130.02,130.0,0.05555466]
[1744830959275,65.35804332,130.04,130.0,0.05555466]
[1744830959577,7.6908,130.03,130.0,0.05555466]
[1744830959877,65.35804332,130.04,130.0,0.05555466]
[1744830960067,73.04834332,130.04,130.0,0.05555466]
[1744830960272,65.35804332,130.04,130.0,0.05555466]
[1744830960678,36.44,130.04,130.0,0.05555466]
[1744830961173,7.6926,130.0,129.95,7.6948]
[1744830961477,36.42,130.0,129.94,2.1384]
[1744830962173,0.05164397,129.98,129.96,0.05812348]
[1744830962873,7.6939,129.97,129.96,0.05812348]
[1744830963077,28.96968729,129.98,129.88,38.4675]
[1744830963377,28.91804332,129.96,129.88,38.4675]
[1744830963679,36.32,129.95,129.88,67.38554332]
[1744830963878,36.32,129.95,129.92,7.6965]
[1744830964077,36.37440971,129.95,129.92,7.74795027]
[1744830964776,36.37440971,129.95,129.92,0.05145027]
[1744830965476,28.91804332,129.94,129.92,0.05145027]
[1744830965680,36.37440971,129.95,129.92,0.05145027]
[1744830966181,44.06980971,129.95,129.92,0.05145027]
[1744830966484,36.37440971,129.95,129.92,0.05145027]
[1744830966684,44.06960971,129.95,129.92,0.05145027]
[1744830967084,36.37440971,129.95,129.92,0.05145027]
[1744830967283,7.6957,129.94,129.92,0.05145027]
[1744830967578,0.05440971,129.95,129.92,0.05145027]
[1744830969389,36.37440971,129.95,129.92,0.05145027]
[1744830969685,65.29245303,129.95,129.92,0.05145027]
[1744830970982,36.37440971,129.95,129.92,0.05145027]
[1744830971185,0.05440971,129.95,129.92,0.05145027]
[1744830971388,36.8944,130.02,129.93,36.34]
[1744830971590,36.8944,130.02,129.94,4.1921]
[1744830971791,7.6916,130.01,129.97,7.6936]
[1744830971991,36.8944,130.02,129.94,4.1921]
[1744830972185,36.34,130.02,129.94,4.1921]
[1744830972393,36.34,130.02,129.99,7.6922]
[1744830972587,36.3965625,130.02,129.99,7.6922]
[1744830972988,0.0565625,130.02,129.97,0.05349931]
[1744830973189,0.0565625,130.02,129.97,36.39349931]
[1744830973583,0.0565625,130.02,130.01,7.6915]
[1744830974288,0.0565625,130.02,130.0,0.05081634]
[1744830974494,0.0565625,130.02,130.0,7.74261634]
[1744830974691,0.0565625,130.02,130.0,0.05081634]
[1744830977191,0.0565625,130.02,130.01,7.6915]
[1744830979100,0.0565625,130.02,130.0,0.05081634]
[1744830979699,0.0565625,130.02,129.94,4.1921]
[1744830979700,28.91804332,130.0,129.94,2.0662]
[1744830980189,28.91804332,130.0,129.91,2.097]
[1744830980394,28.91804332,129.98,129.91,2.097]
[1744830980596,28.97484926,129.96,129.93,0.05440467]
[1744830980798,36.32,129.95,129.93,0.05412482]
[1744830981197,44.0152,129.95,129.93,0.05412482]
[1744830981792,36.32,129.95,129.93,0.05412482]
[1744830982296,7.6966,129.93,129.86,6.3284]
[1744830982496,36.32,129.95,129.86,6.3284]
[1744830982497,28.91804332,129.94,129.86,6.3284]
[1744830983393,0.05797812,129.91,129.89,0.05494274]
[1744830983795,36.37797812,129.91,129.89,0.05494274]
[1744830984903,36.32,130.01,129.9,65.23804332]
[1744830985093,36.32,130.01,129.92,28.91804332]
[1744830985399,36.32,130.01,129.93,2.075]
[1744830985599,36.32,130.01,129.98,7.6931]
[1744830985895,36.37721714,130.01,129.98,7.74837884]
[1744830986195,0.05721714,130.01,129.98,0.05527884]
[1744830988799,0.05721714,130.01,129.98,7.74847884]
[1744830989001,36.32,130.0,129.98,0.05527884]
[1744830989796,36.32,130.0,129.98,7.74857884]
[1744830990199,36.32,130.0,129.98,0.05527884]
[1744830991203,44.0123,130.0,129.98,0.05527884]
[1744830991703,36.32,130.0,129.98,0.05527884]
[1744830993295,7.6945,129.96,129.92,7.6964]
[1744830993500,65.15804332,129.95,129.87,6.303]
[1744830993703,0.4444,129.99,129.88,28.91804332]
[1744830993704,36.24,129.97,129.88,28.91804332]
[1744830993906,36.24,129.97,129.88,31.04024332]
[1744830994302,0.05164332,129.94,129.91,0.05120813]
[1744830994901,0.05164332,129.94,129.93,7.6962]
[1744830995210,36.24,130.0,129.92,28.91804332]
[1744830995505,28.91804332,129.98,129.88,2.1222]
[1744830995808,65.15804332,130.0,129.89,28.91804332]
[1744830996005,7.6937,129.98,129.93,7.6959]
[1744830996205,0.05373808,129.96,129.93,7.75390276]
[1744830996506,0.05373808,129.96,129.94,7.6956]
[1744830996707,0.05373808,129.96,129.93,0.05800276]
[1744830997007,65.2117814,129.96,129.93,0.05800276]
[1744830997510,7.6951,129.95,129.93,0.05800276]
[1744830997808,36.29373808,129.96,129.93,0.05800276]
[1744830998005,65.2117814,129.96,129.93,0.05800276]
[1744830998708,7.6957,129.94,129.93,0.05800276]
[1744830999605,28.91804332,129.94,129.87,2.0589]
[1744830999800,36.29373808,129.96,129.83,1.9564]
[1744830999801,28.91804332,129.9,129.83,1.9564]
[1744831000006,36.24,129.89,129.85,7.7007]
[1744831000210,36.24,129.89,129.83,1.9564]
[1744831000503,36.24,129.89,129.87,7.6995]
[1744831000705,36.24,129.89,129.87,7.75116657]
[1744831000706,36.29853056,129.89,129.87,7.75116657]
[1744831000900,36.29853056,129.89,129.87,0.05166657]
[1744831001107,36.24,129.95,129.88,28.91804332]
[1744831001406,36.24,129.95,129.89,2.1541]
[1744831001910,36.24,129.95,129.9,2.0173]
[1744831002209,36.24,129.95,129.91,0.05673673]
[1744831002210,0.04997284,129.94,129.91,0.05673673]
[1744831002806,28.96801616,129.94,129.91,0.05673673]
[1744831003206,28.91804332,129.92,129.84,3.9978]
[1744831003409,36.24,129.91,129.84,3.9978]
[1744831004305,0.0510714,129.89,129.86,0.05696082]
[1744831004513,7.7498714,129.89,129.86,0.05696082]
[1744831004713,0.0510714,129.89,129.86,0.05696082]
[1744831005210,0.0510714,129.89,129.81,132.31672]
[1744831005211,28.91804332,129.88,129.81,132.31672]
[1744831005411,36.26,129.87,129.81,132.31672]
[1744831005708,7.7007,129.86,129.82,7.7023]
[1744831005914,36.26,129.87,129.81,132.31672]
[1744831006210,36.26,129.87,129.83,0.05282294]
[1744831006410,0.05348668,129.85,129.83,7.75472294]
[1744831006611,0.05348668,129.85,129.83,0.05282294]
[1744831007210,0.05348668,129.85,129.84,7.7016]
[1744831007512,36.26,129.9,129.83,0.05282294]
[1744831008210,36.26,129.9,129.85,7.7009]
[1744831008417,36.26,129.9,129.82,28.91804332]
[1744831008615,0.05120873,129.89,129.86,0.05657109]
[1744831008919,36.26,129.99,129.88,28.91804332]
[1744831009116,36.26,129.99,129.89,1.9786]
[1744831009311,7.6942,129.97,129.92,7.6964]
[1744831009513,7.6942,129.97,129.89,1.9786]
[1744831009818,0.05641677,129.94,129.92,7.74988944]
[1744831010217,0.05641677,129.94,129.92,0.05338944]
[1744831010520,36.31641677,129.94,129.92,0.05338944]
[1744831010715,65.23446009,129.94,129.85,1.9674]
[1744831010915,28.91804332,129.91,129.79,36.26]
[1744831011115,28.91804332,129.87,129.79,1.9674]
[1744831011321,36.26,129.86,129.79,1.9674]
[1744831011517,7.7017,129.84,129.76,36.26]
[1744831011717,7.75228317,129.84,129.81,132.36613271]
[1744831012015,0.05058317,129.84,129.81,132.36613271]
[1744831012921,7.75228317,129.84,129.81,132.36613271]
[1744831013416,7.75238317,129.84,129.81,132.36613271]
[1744831013621,0.05058317,129.84,129.81,132.36613271]
[1744831014515,0.05058317,129.84,129.83,7.7022]
[1744831014716,0.05058317,129.84,129.81,132.36613271]
[1744831016124,36.26,129.91,129.82,46.65262506]
[1744831016317,36.26,129.91,129.84,46.65262506]
[1744831016516,36.26,129.91,129.85,2.0198]
[1744831017325,0.05529081,129.89,129.87,0.05034505]
[1744831017526,0.05529081,129.89,129.88,7.6992]
[1744831018126,0.05529081,129.89,129.87,0.05034505]
[1744831019031,46.65262506,129.88,129.81,132.31672]
[1744831019223,36.26,129.87,129.83,7.7021]
[1744831019423,36.26,129.87,129.81,132.31672]
[1744831019826,36.26,129.87,129.85,7.7006]
[1744831020027,36.26,129.87,129.81,132.31672]
[1744831020223,0.04960875,129.87,129.85,0.05785328]
[1744831020426,0.04960875,129.87,129.86,7.7004]
[1744831020728,36.30960875,129.87,129.85,0.05785328]
[1744831021128,44.00970875,129.87,129.85,0.05785328]
[1744831021429,36.30960875,129.87,129.85,0.05785328]
[1744831021625,36.30960875,129.87,129.85,7.75845328]
[1744831021825,36.30960875,129.87,129.85,0.05785328]
[1744831022627,44.00990875,129.87,129.85,0.05785328]
[1744831023028,82.96223381,129.87,129.85,0.05785328]
[1744831023226,637.46223381,129.87,129.81,132.31672]
[1744831023430,590.80960875,129.87,129.81,132.31672]
[1744831023732,7.7005,129.86,129.82,7.7024]
[1744831023934,590.80960875,129.87,129.81,132.31672]
[1744831024228,590.80960875,129.87,129.83,0.05535983]
[1744831024435,598.50970875,129.87,129.83,0.05535983]
[1744831025033,590.80960875,129.87,129.83,0.05535983]
[1744831025233,590.80960875,129.87,129.84,7.7012]
[1744831025425,36.30960875,129.87,129.83,0.05535983]
[1744831025831,0.04960875,129.87,129.86,7.7004]
[1744831027233,554.54,129.93,129.86,7.7]
[1744831027534,36.18,129.94,129.87,2.1231]
[1744831028035,400.18,129.97,129.88,46.65262506]
[1744831028235,0.0535185,129.94,129.92,7.6965]
[1744831029035,0.0535185,129.94,129.91,7.74629371]
[1744831029238,0.0535185,129.94,129.91,0.04909371]
[1744831030137,0.0535185,129.94,129.91,7.74649371]
[1744831030433,0.0535185,129.94,129.91,0.04909371]
[1744831030736,82.83262506,129.93,129.91,0.04909371]
[1744831030937,43.8765,129.93,129.91,0.04909371]
[1744831031136,36.18,129.93,129.91,0.04909371]
[1744831031338,0.0535185,129.94,129.91,0.04909371]
[1744831031936,0.0535185,129.94,129.93,7.6962]
[1744831032735,0.0535185,129.94,129.92,7.6966]
[1744831033335,0.0535185,129.94,129.91,0.04909371]
[1744831033830,0.0535185,129.94,129.92,7.6965]
[1744831034036,0.0535185,129.94,129.91,0.04909371]
[1744831034841,0.0535185,129.94,129.93,7.6962]
[1744831035341,0.0535185,129.94,129.92,7.6967]
[1744831035635,0.0535185,129.94,129.91,0.04909371]
[1744831035832,0.0535185,129.94,129.92,7.6966]
[1744831036233,0.0535185,129.94,129.91,0.04909371]
[1744831036430,0.0535185,129.94,129.93,7.6962]
[1744831038640,0.0535185,129.94,129.92,7.6966]
[1744831038834,0.0535185,129.94,129.91,0.04909371]
[1744831039237,0.0535185,129.94,129.92,7.6965]
[1744831039437,0.0535185,129.94,129.91,0.04909371]
[1744831039835,554.54,129.99,129.91,0.04909371]
[1744831040140,590.7,129.99,129.9,64.8140676]
[1744831040337,590.7,129.99,129.95,7.6948]
[1744831040740,28.6540676,129.98,129.9,36.16]
[1744831040937,0.05706207,129.95,129.94,7.6957]
[1744831041140,36.16,130.05,129.94,36.16]
[1744831041343,28.6540676,130.04,129.95,1.9637]
[1744831041542,7.6907,130.03,129.98,7.6929]
[1744831041842,7.6907,130.03,129.95,1.9637]
[1744831042034,7.6907,130.03,129.98,7.74324353]
[1744831042241,0.05868092,130.0,129.98,7.74324353]
[1744831043241,0.05868092,130.0,129.99,7.6927]
[1744831043641,0.05868092,130.0,129.98,0.05024353]
[1744831043842,0.05868092,130.0,129.98,7.74324353]
[1744831044141,0.05868092,130.0,129.98,0.05024353]
[1744831045041,28.71274852,130.0,129.98,0.05024353]
[1744831045244,7.6927,129.99,129.98,0.05024353]
[1744831045838,7.6946,129.96,129.9,4.0866]
[1744831046041,36.16,129.97,129.9,4.0866]
[1744831046242,36.16,129.97,129.91,2.1314]
[1744831046543,36.16,129.97,129.95,7.6946]
[1744831046842,36.16,129.97,129.91,2.1314]
[1744831047045,36.21240265,129.97,129.95,0.05701457]
[1744831047741,46.54118575,129.96,129.91,9.8285]
[1744831047935,36.21240265,129.97,129.91,2.1314]
[1744831048439,43.90650265,129.97,129.93,7.696]
[1744831048645,36.21240265,129.97,129.94,0.0502638]
[1744831049140,36.21240265,129.97,129.94,7.7455638]
[1744831049841,36.21240265,129.97,129.95,7.695]